[Event "Kragero Resort B 2020"]
[Site "Kragero"]
[Date "2020.02.20"]
[Round "3.3"]
[White "Sivertsen, Jarle"]
[Black "Seo, Jung Hyun"]
[Result "0-1"]
[ECO "A13"]
[WhiteElo "1606"]
[BlackElo "1816"]
[Annotator "NA RC"]
[PlyCount "96"]
[EventDate "2020.02.19"]
[EventType "swiss"]
[EventCountry "NOR"]
[SourceTitle "playchess.com"]
[Source "ChessBase"]
[SourceQuality "1"]
[TimeControl "5400+30"]

1. Nf3 {[%emt 0:00:00]} d5 {[%emt 0:00:00]} 2. g3 {[%emt 0:00:35]} Nf6 {[%emt 0:01:23]} 3. c4 {[%emt 0:00:56]} e6 {[%emt 0:00:12]} 4. Bg2 {[%emt 0:00:38]} dxc4 {[%emt 0:00:48]} 5. Qa4+ {[%emt 0:02:06]} Bd7 {[%emt 0:02:06]} 6. Qxc4 {[%emt 0:00:10]} Bc6 {[%emt 0:00:26]} 7. O-O {[%emt 0:00:35]} Be7 {[%emt 0:01:35] A13: English Opening: 1...e6.} 8. Nc3 {[%emt 0:03:54]} a6 {[%emt 0:02:01]} 9. d4 {[%emt 0:04:10]} b5 {[%emt 0:02:35]} 10. Qb3 {[%emt 0:02:30]} Nbd7 {[%emt 0:07:35]} 11. Rd1 {[%emt 0:13:33]} O-O {[%emt 0:06:55]} 12. Bg5 {[%emt 0:07:01] [#]} Nb6 $146 {[%emt 0:09:49]} ({Predecessor:} 12... h6 13. Bxf6 Nxf6 14. Rac1 Qe8 15. a3 Rc8 16. Qc2 a5 17. d5 exd5 18. Ne5 Ba8 19. Nxd5 Bxd5 20. Bxd5 {1-0 (46) Romanov,E (2619)-Moiseenko,V (2552) Batumi 2018}) 13. Ne5 {[%emt 0:01:28]} Bxg2 {[%emt 0:00:11]} 14. Kxg2 {[%emt 0:00:05]} Qc8 {[%emt 0:07:41]} 15. Rac1 {[%emt 0:04:50]} Qb7+ {[%emt 0:25:40]} 16. Kg1 {[%emt 0:01:32]} h6 {[%emt 0:02:08]} 17. Bxf6 {[%emt 0:02:02]} Bxf6 {[%emt 0:00:15]} 18. Nf3 {[%emt 0:07:56]} Rfd8 {[%emt 0:03:27]} 19. Qc2 {[%emt 0:03:05]} Rac8 {[%emt 0:03:40]} 20. Ne4 {[%emt 0:01:38]} Be7 $1 {[%emt 0:00:11]} 21. Ne5 {[%emt 0:02:30]} c5 {[%emt 0:05:36]} (21... Nc4 $14) 22. dxc5 {[%emt 0:02:21]} ({White should try} 22. Nxc5 $16 Rxd4 23. Rxd4 (23. Nxb7 Rxc2 24. Rxc2 Rxd1+ 25. Kg2 Bf6 $11) 23... Bxc5 24. Qxc5 Rxc5 25. Rxc5) 22... Rxd1+ {[%emt 0:00:59]} 23. Rxd1 {[%emt 0:00:06]} Qc7 {[%emt 0:01:30]} 24. Nd3 {[%emt 0:01:45]} f5 {[%emt 0:01:18]} 25. Nd2 {[%emt 0:01:04]} (25. Qb3 $5 {[%cal Rb3e6]} Nc4 26. Nd2 Bxc5 27. Rc1 $11) 25... Bxc5 {[%emt 0:00:16]} 26. Nxc5 {[%emt 0:01:03]} Qxc5 {[%emt 0:00:04]} 27. Qxc5 {[%emt 0:01:45]} Rxc5 {[%emt 0:00:05]} 28. Nb3 {[%emt 0:01:21]} Rc2 {[%emt 0:00:58]} 29. Rd6 {[%emt 0:00:58]} Nc4 $11 {[%emt 0:00:39]} 30. Rxa6 {[%emt 0:02:17]} Rxe2 {[%emt 0:00:32]} 31. Nd4 {[%emt 0:00:49]} Rxb2 {[%emt 0:00:32]} 32. Nxe6 {[%emt 0:00:22]} Kf7 {[%emt 0:05:15]} 33. Nd4 {[%emt 0:00:30]} g6 {[%emt 0:01:05]} 34. Kg2 {[%emt 0:01:10]} Ne3+ {[%emt 0:00:44]} 35. Kf3 {[%emt 0:03:19]} Ng4 {[%emt 0:00:14]} 36. Ne2 {[%emt 0:01:09]} Nxh2+ {[%emt 0:00:06]} 37. Ke3 {[%emt 0:01:05]} Ng4+ {[%emt 0:00:05]} 38. Kf3 {[%emt 0:00:17]} g5 {[%emt 0:00:51]} 39. Ra3 {[%emt 0:02:01]} Ne5+ {[%emt 0:00:14]} 40. Kg2 {[%emt 0:01:04]} Rxe2 {[%emt 0:00:03]} 41. Rb3 {[%emt 0:00:26]} Ng4 {[%emt 0:00:28]} 42. Rxb5 {[%emt 0:00:40]} Rxf2+ {[%emt 0:00:05]} 43. Kg1 {[%emt 0:00:01]} Rxa2 {[%emt 0:00:14]} 44. Rxf5+ {[%emt 0:00:10]} Kg6 {[%emt 0:00:05]} 45. Rb5 {[%emt 0:00:49]} Ne3 {[%emt 0:00:15]} 46. Rb3 {[%emt 0:00:46]} Rg2+ {[%emt 0:00:08]} 47. Kh1 {[%emt 0:00:04]} Rxg3 {[%emt 0:00:02]} 48. Kh2 {[%emt 0:00:16]} Nf1+ {[%emt 0:00:04]} 0-1

[Event "Kragero Resort B 2020"]
[Site "Kragero"]
[Date "2020.02.20"]
[Round "3.4"]
[White "Westrum, Kim Roger Hansen"]
[Black "Lystad, Maximilian L"]
[Result "1/2-1/2"]
[ECO "C06"]
[WhiteElo "1809"]
[BlackElo "1710"]
[Annotator "NA RC"]
[PlyCount "77"]
[EventDate "2020.02.19"]
[EventType "swiss"]
[EventCountry "NOR"]
[SourceTitle "playchess.com"]
[Source "ChessBase"]
[SourceQuality "1"]
[TimeControl "5400+30"]

{[%evp 23,58,-4,45,-27,-8,-12,-8,-12,-2,-2,-1,-84,-104,-100,-99,-126,-61,-60,32767,32767,37,25,20,18,32767,32767,8,16,10,0,0,-30,-37,-147,-138,-209,-215]} 1. e4 {[%emt 0:00:00]} e6 {[%emt 0:04:50]} 2. d4 {[%emt 0:00:00]} d5 {[%emt 0:00:06]} 3. Nd2 {[%emt 0:00:00]} Nf6 {[%emt 0:00:04]} 4. e5 {[%emt 0:00:00]} Nfd7 {[%emt 0:00:04]} 5. Bd3 {[%emt 0:00:00]} c5 {[%emt 0:00:04]} 6. c3 {[%emt 0:00:05]} Nc6 {[%emt 0:00:04]} 7. Ne2 {[%emt 0:00:11]} cxd4 {[%emt 0:00:15]} 8. cxd4 {[%emt 0:00:08]} f6 {[%emt 0:00:13]} 9. exf6 {[%emt 0:00:06]} Nxf6 {[%emt 0:00:04]} 10. Nf3 {[%emt 0:00:08]} Bd6 {[%emt 0:00:09]} 11. Bf4 {[%emt 0:00:10]} Qa5+ {[%emt 0:04:22]} 12. Kf1 {[%emt 0:24:01]} Qc7 {[%emt 0:02:59]} 13. Bxd6 {[%emt 0:07:34] C06: French Tarrasch: 3...Nf6 4 e5 Nfd7 5 Bd3 main lines.} ({White should try} 13. g3 $14) 13... Qxd6 {[%emt 0:00:08] [#]} 14. g3 $146 {[%emt 0:00:09]} ({Predecessor:} 14. Bb5 O-O 15. Bxc6 bxc6 16. Rc1 Ba6 17. Kg1 Rac8 18. Qc2 Ne4 19. Ng3 Rf4 20. h4 c5 21. Nxe4 dxe4 22. dxc5 {½-½ (47) Kuratov,V (2225)-Arslanov,S (2421) St Petersburg 2012}) 14... O-O {[%emt 0:00:51]} 15. Kg2 $1 {[%emt 0:00:59]} e5 {[%emt 0:00:37]} 16. dxe5 {[%emt 0:01:58]} Nxe5 {[%emt 0:02:46]} 17. Ned4 {[%emt 0:00:14]} (17. Nxe5 $11 Qxe5 18. Re1) 17... Nxf3 {[%emt 0:08:17]} 18. Nxf3 {[%emt 0:00:12] [#]} Bg4 $1 {[%emt 0:00:11]} 19. Be2 {[%emt 0:00:41]} Ne4 {[%emt 0:01:40]} 20. Rf1 $1 {[%emt 0:05:36]} Qd7 {[%emt 0:10:57]} 21. Ng1 {[%emt 0:02:55]} Bxe2 {[%emt 0:08:37]} 22. Nxe2 {[%emt 0:01:52]} Ng5 {[%emt 0:02:59]} 23. Nd4 {[%emt 0:01:32]} Rf6 {[%emt 0:03:23]} 24. f3 {[%emt 0:03:04]} Raf8 {[%emt 0:03:13]} 25. Qe2 {[%emt 0:01:27]} h5 {[%emt 0:07:18]} 26. Kh1 {[%emt 0:08:56]} Qf7 {[%emt 0:07:22]} 27. f4 {[%emt 0:03:21]} h4 {[%emt 0:09:39]} 28. Qg4 {[%emt 0:05:33] [#]} (28. gxh4 $15 Ne4 29. f5) 28... hxg3 $1 {[%emt 0:00:40]} 29. hxg3 $19 {[%emt 0:02:51] [#]} (29. Qxg3 $17 Rxf4 30. Rxf4 Qxf4 31. Rg1) 29... Ne4 $1 {[%emt 0:04:12]} 30. Nf3 {[%emt 0:09:16]} Rg6 {[%emt 0:03:31]} 31. Ng5 {[%emt 0:00:01]} Qe7 {[%emt 0:02:21]} 32. Kg2 {[%emt 0:08:06]} Nxg5 {[%emt 0:01:18]} 33. Rae1 {[%emt 0:02:07]} Qb4 {[%emt 0:00:27]} 34. Qh5 {[%emt 0:05:54]} Qxb2+ {[%emt 0:00:35]} 35. Re2 {[%emt 0:00:25]} Qf6 {[%emt 0:00:35]} 36. Rfe1 {[%emt 0:00:27]} Ne4 {[%emt 0:00:24]} 37. Qxd5+ {[%emt 0:00:06]} Qe6 {[%emt 0:05:06]} 38. Qxe6+ {[%emt 0:02:01]} Rxe6 {[%emt 0:00:06]} 39. Rxe4 {[%emt 0:00:06]} 1/2-1/2

[Event "Kragero Resort B 2020"]
[Site "Kragero"]
[Date "2020.02.20"]
[Round "3.6"]
[White "Opseth, Oliver"]
[Black "Rynning, Rune Kleiven"]
[Result "0-1"]
[ECO "B21"]
[WhiteElo "1894"]
[BlackElo "1625"]
[Annotator "NA RC"]
[PlyCount "72"]
[EventDate "2020.02.19"]
[EventType "swiss"]
[EventCountry "NOR"]
[SourceTitle "playchess.com"]
[Source "ChessBase"]
[SourceQuality "1"]
[TimeControl "5400+30"]

1. e4 {[%emt 0:00:00]} c5 {[%emt 0:00:00]} 2. d4 {[%emt 0:00:00]} cxd4 {[%emt 0:00:05]} 3. c3 {[%emt 0:00:00]} dxc3 {[%emt 0:00:30]} 4. Nxc3 {[%emt 0:00:00]} Nc6 {[%emt 0:00:56]} 5. Nf3 {[%emt 0:00:05]} d6 {[%emt 0:01:09]} 6. Bc4 {[%emt 0:02:10]} e6 {[%emt 0:01:14]} 7. O-O {[%emt 0:03:33]} Be7 {[%emt 0:05:23]} 8. Qe2 {[%emt 0:03:59]} Bd7 {[%emt 0:05:11]} 9. Rd1 {[%emt 0:02:25]} a6 {[%emt 0:03:02]} 10. a4 {[%emt 0:04:54] B21: Sicilian: 2 f4 and Morra Gambit.} Qc7 {[%emt 0:04:56] [#]} 11. Rb1 $146 {[%emt 0:14:57]} ({Predecessor:} 11. Bf4 Ne5 12. Bxe5 dxe5 13. Rac1 Nf6 14. Bxe6 fxe6 15. Nd5 Nxd5 16. Rxc7 Nxc7 17. Nxe5 O-O-O {1-0 (37) Stone,A (1933)-Sellen,I (2007) Wellington 2014}) 11... Rc8 {[%emt 0:04:18]} 12. b4 $2 {[%emt 0:05:48] [#]} ({White should play} 12. Be3 $15) 12... Nxb4 $2 {[%emt 0:07:15]} (12... Ne5 $1 $19 13. Bd3 Qxc3) 13. Rxb4 {[%emt 0:00:27]} a5 $1 {[%emt 0:07:27]} 14. Rxb7 {[%emt 0:07:35]} Qxb7 {[%emt 0:07:11]} 15. Ba6 {[%emt 0:00:43]} Qc7 {[%emt 0:04:08]} 16. Nb5 {[%emt 0:03:42] [#]} Qc2 $2 {[%emt 0:04:32]} (16... Qxc1 $1 $19 17. Rxc1 Rxc1+ 18. Ne1 Nf6) 17. Qxc2 {[%emt 0:04:05]} Rxc2 {[%emt 0:02:23]} 18. Bd2 $2 {[%emt 0:02:40]} (18. Nfd4 $17 Ra2 19. Nc3) 18... Nf6 {[%emt 0:03:38]} 19. e5 {[%emt 0:06:10]} Ne4 {[%emt 0:04:13]} 20. Bxa5 {[%emt 0:03:51]} d5 {[%emt 0:02:59]} ({Not} 20... Nxf2 21. Rd2 $17) ({Inferior is} 20... Rxf2 21. exd6 Bf6 22. Re1 $14) 21. Nc7+ {[%emt 0:08:46]} Kf8 {[%emt 0:00:47]} 22. Nd4 {[%emt 0:01:23]} Rxf2 {[%emt 0:05:35]} 23. Bb6 $19 {[%emt 0:06:50]} Bxa4 {[%emt 0:04:33]} 24. Rb1 {[%emt 0:04:51]} Rd2 {[%emt 0:03:18]} 25. Bf1 {[%emt 0:02:23]} g6 {[%emt 0:03:28]} 26. Ra1 {[%emt 0:03:11]} Bc5 {[%emt 0:02:27]} 27. Bxc5+ {[%emt 0:01:09]} Nxc5 {[%emt 0:00:08]} 28. Nf3 {[%emt 0:01:37]} Rd1 {[%emt 0:01:44]} 29. Ra2 {[%emt 0:00:53]} Bb3 {[%emt 0:02:03]} 30. Rf2 {[%emt 0:01:26]} Bc4 {[%emt 0:00:52]} 31. Nd2 {[%emt 0:00:24]} Bxf1 {[%emt 0:01:01]} 32. Nxf1 {[%emt 0:00:04]} Kg7 {[%emt 0:01:28]} 33. g4 {[%emt 0:00:35]} Rc8 {[%emt 0:01:07]} 34. Nb5 {[%emt 0:00:09]} Ne4 {[%emt 0:00:24]} 35. Rf4 {[%emt 0:02:23]} g5 {[%emt 0:01:22]} 36. Rf3 {[%emt 0:00:17]} Nd2 {[%emt 0:00:19]} 0-1

[Event "Kragero Resort B 2020"]
[Site "Kragero"]
[Date "2020.02.20"]
[Round "3.7"]
[White "Solli, Jarle"]
[Black "Aasen, Kjetil Myrlid"]
[Result "0-1"]
[ECO "A60"]
[WhiteElo "1732"]
[BlackElo "1892"]
[Annotator "NA RC"]
[PlyCount "86"]
[EventDate "2020.02.19"]
[EventType "swiss"]
[EventCountry "NOR"]
[SourceTitle "playchess.com"]
[Source "ChessBase"]
[SourceQuality "1"]
[TimeControl "5400+30"]

{[%evp 8,81,65,20,32767,32767,32767,32767,32767,32767,32767,32767,32767,32767,-14,-67,-57,-80,-31,-43,-18,-33,32767,-35,-40,-46,-45,-115,-48,32767,-60,-64,-58,-60,-47,-43,-48,32767,32767,-72,-37,32767,32767,-33,-44,-58,32767,32767,-175,-217,-233,-234,-234,-215,-157,-179,-183,-291,-295,-309,-350,-321,-381,-493,-533,-758,-924,-1022,-1303,-1141,-369,-1083,32767,-1318,-2725,-1837]} 1. d4 {[%emt 0:00:00]} Nf6 {[%emt 0:00:00]} 2. c4 {[%emt 0:00:00]} c5 {[%emt 0:00:00]} 3. d5 {[%emt 0:00:12]} e6 {[%emt 0:00:00]} 4. Nc3 {[%emt 0:00:22]} exd5 {[%emt 0:00:00]} 5. Nxd5 {[%emt 0:00:55]} Nxd5 {[%emt 0:00:53]} 6. Qxd5 {[%emt 0:00:20]} Nc6 {[%emt 0:03:06]} 7. Bd2 {[%emt 0:02:31] A60: Modern Benoni: Early Divergences.} d6 {[%emt 0:06:25]} 8. e3 {[%emt 0:01:04]} Be6 {[%emt 0:01:55]} 9. Qe4 {[%emt 0:00:45]} Be7 {[%emt 0:04:34]} 10. Nf3 {[%emt 0:00:50]} Bf6 {[%emt 0:03:32]} 11. Bc3 {[%emt 0:06:35]} Bxc3+ {[%emt 0:03:10]} 12. bxc3 {[%emt 0:00:02]} Qa5 {[%emt 0:11:40] [#]} 13. Qc2 $146 {[%emt 0:00:22]} ({Predecessor:} 13. Bd3 Qxc3+ 14. Ke2 Nb4 15. Rac1 Qxd3+ 16. Qxd3 Nxd3 17. Kxd3 b6 18. e4 f5 19. Ng5 fxe4+ 20. Kxe4 {0-1 (40) Rosello,C-Sarmiento Alfonso,B (2280) Gran Canaria 1989}) 13... Qa6 {[%emt 0:05:51]} 14. Nd2 {[%emt 0:00:16]} O-O {[%emt 0:02:45]} 15. Bd3 {[%emt 0:00:21]} h6 {[%emt 0:01:42]} 16. O-O {[%emt 0:02:25]} Ne5 {[%emt 0:02:34]} 17. Rfd1 {[%emt 0:03:25]} (17. e4 $15) 17... Rfd8 {[%emt 0:10:36]} (17... Nxd3 $17 18. Qxd3 {[#]} d5 $1 {[%mdl 512]}) 18. Be4 {[%emt 0:06:10]} Nxc4 {[%emt 0:03:29]} 19. Nxc4 {[%emt 0:00:12]} Bxc4 {[%emt 0:00:28]} 20. Bd5 {[%emt 0:00:11]} Rd7 {[%emt 0:04:46]} 21. Qe4 {[%emt 0:04:22]} Bxd5 {[%emt 0:02:02]} 22. Qxd5 {[%emt 0:01:13]} Rad8 {[%emt 0:00:31]} 23. a4 {[%emt 0:01:44]} b6 {[%emt 0:06:35]} 24. c4 {[%emt 0:00:29]} Qb7 {[%emt 0:00:18]} 25. e4 {[%emt 0:01:45]} Qxd5 {[%emt 0:00:20]} 26. Rxd5 {[%emt 0:00:03]} f6 {[%emt 0:03:42]} 27. f4 {[%emt 0:00:30]} Re8 {[%emt 0:04:02]} 28. Re1 {[%emt 0:01:53]} Rde7 {[%emt 0:01:16]} 29. e5 {[%emt 0:02:37]} dxe5 {[%emt 0:01:00]} 30. f5 {[%emt 0:00:28]} Kf7 {[%emt 0:02:08]} 31. Re4 {[%emt 0:00:53]} Rb7 {[%emt 0:01:27]} 32. Kf2 {[%emt 0:00:29]} (32. Re1 $142) 32... Ree7 {[%emt 0:00:37]} 33. Re2 {[%emt 0:02:25]} Red7 {[%emt 0:01:03]} 34. Red2 {[%emt 0:00:03]} Ke7 {[%emt 0:00:27]} 35. Ke3 {[%emt 0:00:54]} (35. Rxd7+ $142 Rxd7 36. Rb2) 35... Rxd5 {[%emt 0:00:29]} 36. Rxd5 {[%emt 0:00:04]} Rd7 {[%emt 0:02:22]} 37. Ke4 {[%emt 0:00:27]} Rd6 {[%emt 0:01:31]} 38. g4 {[%emt 0:01:05]} Rc6 $2 {[%emt 0:00:44]} (38... Rxd5 39. Kxd5 Kd7) 39. h3 $2 {[%emt 0:03:10]} (39. Rd3) 39... Rd6 {[%emt 0:01:20]} 40. h4 {[%emt 0:03:50]} Rxd5 {[%emt 0:00:46]} 41. Kxd5 $19 {[%emt 0:00:15]} Kd7 {[%emt 0:00:16]} 42. g5 {[%emt 0:07:36]} hxg5 {[%emt 0:00:16]} 43. hxg5 {[%emt 0:00:02]} Ke7 {[%emt 0:02:31]} 0-1

[Event "Kragero Resort B 2020"]
[Site "Kragero"]
[Date "2020.02.20"]
[Round "3.8"]
[White "Haugen, Lars Tormod"]
[Black "Strand, Amund Pihl"]
[Result "0-1"]
[ECO "A17"]
[WhiteElo "1598"]
[BlackElo "1806"]
[Annotator "NA RC"]
[PlyCount "88"]
[EventDate "2020.02.19"]
[EventType "swiss"]
[EventCountry "NOR"]
[SourceTitle "playchess.com"]
[Source "ChessBase"]
[SourceQuality "1"]
[TimeControl "5400+30"]

1. c4 {[%emt 0:00:16]} Nf6 {[%emt 0:03:49]} 2. Nc3 {[%emt 0:00:00]} e6 {[%emt 0:00:35]} 3. Nf3 {[%emt 0:06:56]} d5 {[%emt 0:00:35]} 4. e3 {[%emt 0:02:24]} b6 {[%emt 0:00:35]} 5. b3 {[%emt 0:02:04]} Bb7 {[%emt 0:00:16]} 6. Bb2 {[%emt 0:00:35] A17: English Opening: 1...Nf6 with ...Bb4.} Bd6 {[%emt 0:00:42]} 7. Qc2 {[%emt 0:02:31]} O-O {[%emt 0:02:22]} 8. cxd5 {[%emt 0:05:31]} exd5 {[%emt 0:01:59]} 9. Nb5 {[%emt 0:08:22] [#]} Bc5 $146 {[%emt 0:10:39]} ({Predecessor:} 9... c5 $11 {keeps the balance.} 10. Nxd6 Qxd6 11. d4 Nbd7 12. dxc5 bxc5 13. Be2 Rac8 14. O-O c4 15. Bd4 Ba6 16. bxc4 Bxc4 17. Bxc4 Rxc4 {0-1 (29) Gaifullin,A (2448)-Goganov,A (2612) St Petersburg 2018}) 10. b4 {[%emt 0:05:26]} Bd6 {[%emt 0:01:06]} 11. a3 {[%emt 0:10:19]} c6 {[%emt 0:13:33]} 12. Nxd6 {[%emt 0:00:27]} Qxd6 {[%emt 0:00:03]} 13. Bd3 {[%emt 0:04:08]} Nbd7 {[%emt 0:01:30]} 14. g4 {[%emt 0:09:03]} (14. Rb1 $14) 14... c5 {[%emt 0:06:55]} 15. g5 {[%emt 0:05:35]} (15. bxc5 $15 bxc5 16. g5) 15... Ne4 {[%emt 0:00:24]} 16. Bxe4 {[%emt 0:02:00]} (16. h4 $17 {is a better defense.}) 16... dxe4 {[%emt 0:00:12]} 17. Qc3 {[%emt 0:01:36]} (17. Ng1 {might work better.}) 17... f6 {[%emt 0:06:38]} 18. Nh4 {[%emt 0:05:41]} Ne5 {[%emt 0:03:57]} 19. O-O-O {[%emt 0:12:40]} (19. gxf6 $142 Nd3+ {[%mdl 64] Double Attack, Zwischenzug} 20. Ke2 Nxb2 21. Qxb2 Qd3+ 22. Kd1 Rxf6 23. Rg1) 19... cxb4 {[%emt 0:00:49]} 20. Qd4 {[%emt 0:00:55]} Qxd4 $19 {[%emt 0:01:37]} (20... Qe6 21. Rdg1 Nc6 22. gxf6 Nxd4 23. Rxg7+ Kh8 24. Bxd4 Qc4+ 25. Kb2 bxa3+ 26. Kxa3 Bd5 27. Rg8+ Rxg8 28. f7+ {[#]} Rg7 $1 {[%mdl 512]} 29. Kb2 Qa2+ 30. Kc1 Rc8+ 31. Bc3 Bb3 32. f8=Q+ Rxf8 33. Bxg7+ Kg8 34. Bb2 Rc8+ 35. Bc3 Qc2#) 21. Bxd4 {[%emt 0:00:04]} Nd3+ {[%emt 0:00:07]} ({Don't play} 21... fxg5 22. Bxe5 Rac8+ 23. Kb1 $19) ({Much less strong is} 21... bxa3 22. gxf6 gxf6 23. Kb1 $19) 22. Kb1 {[%emt 0:00:33]} Nxf2 {[%emt 0:00:14]} 23. gxf6 {[%emt 0:00:17]} Nxh1 {[%emt 0:02:06]} 24. Rxh1 {[%emt 0:02:28]} bxa3 {[%emt 0:06:09]} 25. Rg1 {[%emt 0:03:39]} g6 {[%emt 0:02:38]} 26. Nxg6 {[%emt 0:03:30]} hxg6 {[%emt 0:00:02]} 27. Rxg6+ {[%emt 0:00:05]} Kf7 {[%emt 0:00:14]} 28. Rg7+ {[%emt 0:00:31]} Ke6 {[%emt 0:00:02]} 29. Rxb7 {[%emt 0:01:02]} Rf7 {[%emt 0:00:20]} 30. Rxf7 {[%emt 0:02:08]} Kxf7 {[%emt 0:00:03]} 31. Ka2 {[%emt 0:00:01]} Rh8 {[%emt 0:00:24]} 32. Kxa3 {[%emt 0:00:58]} Rxh2 {[%emt 0:00:09]} 33. Bc3 {[%emt 0:00:34]} Rf2 {[%emt 0:00:08]} 34. Kb4 {[%emt 0:00:39]} Rxf6 {[%emt 0:00:09]} 35. Kb5 {[%emt 0:02:16]} Ke6 {[%emt 0:00:21]} 36. Bd4 {[%emt 0:01:40]} Rf7 {[%emt 0:00:15]} 37. Ka6 {[%emt 0:00:05]} Kd5 {[%emt 0:00:06]} 38. Kb5 {[%emt 0:00:18]} Rc7 {[%emt 0:00:59]} 39. Ka6 {[%emt 0:00:23]} Kc4 {[%emt 0:00:14]} 40. Be5 {[%emt 0:00:26]} Rd7 {[%emt 0:00:13]} 41. Bc3 {[%emt 0:00:18]} b5 {[%emt 0:00:44]} 42. Ka5 {[%emt 0:00:21]} Rd3 {[%emt 0:00:14]} 43. Bb4 {[%emt 0:00:29]} Rb3 {[%emt 0:00:23]} 44. Bd6 {[%emt 0:01:07]} Rb2 {[%emt 0:01:52]} 0-1

[Event "Kragero Resort B 2020"]
[Site "Kragero"]
[Date "2020.02.20"]
[Round "3.9"]
[White "Frovik, Einar Clausen"]
[Black "Austad, Eirik"]
[Result "0-1"]
[ECO "B07"]
[WhiteElo "1563"]
[BlackElo "1796"]
[Annotator "NA RC"]
[PlyCount "108"]
[EventDate "2020.02.19"]
[EventType "swiss"]
[EventCountry "NOR"]
[SourceTitle "playchess.com"]
[Source "ChessBase"]
[SourceQuality "1"]
[TimeControl "5400+30"]

1. e4 {[%emt 0:00:00]} d6 {[%emt 0:01:14]} 2. d4 {[%emt 0:00:00]} Nf6 {[%emt 0:00:45]} 3. Nc3 {[%emt 0:00:08]} c6 {[%emt 0:00:39]} 4. f3 {[%emt 0:08:30]} g6 {[%emt 0:09:04]} 5. Nge2 {[%emt 0:04:42]} h5 {[%emt 0:03:18]} 6. e5 {[%emt 0:12:44]} dxe5 {[%emt 0:07:21]} 7. dxe5 {[%emt 0:01:43]} Qxd1+ {[%emt 0:01:04]} 8. Nxd1 {[%emt 0:00:05]} Nd5 {[%emt 0:00:36]} 9. Ne3 {[%emt 0:04:55]} Nxe3 {[%emt 0:04:40]} 10. Bxe3 {[%emt 0:00:04]} Bg7 {[%emt 0:00:09]} 11. f4 {[%emt 0:02:41]} Na6 {[%emt 0:03:18]} 12. Nc3 {[%emt 0:03:01]} Nb4 {[%emt 0:10:10]} 13. O-O-O {[%emt 0:01:23]} Bf5 {[%emt 0:03:05]} 14. Bd3 {[%emt 0:02:03]} Nxd3+ {[%emt 0:02:24]} 15. cxd3 {[%emt 0:02:59]} b6 {[%emt 0:09:42]} 16. Ne4 {[%emt 0:01:53]} O-O-O {[%emt 0:02:19]} 17. Ng5 {[%emt 0:06:37]} Rhf8 {[%emt 0:02:16]} 18. d4 {[%emt 0:11:44]} Bh6 {[%emt 0:04:53]} 19. Nf3 {[%emt 0:03:17]} Be4 {[%emt 0:02:19]} 20. Rhf1 {[%emt 0:00:25]} Rd7 {[%emt 0:06:12]} 21. Rf2 {[%emt 0:01:07]} Rfd8 {[%emt 0:01:02]} 22. Nd2 {[%emt 0:00:54]} Bf5 {[%emt 0:01:54]} 23. h3 {[%emt 0:01:07]} f6 {[%emt 0:02:00]} 24. Nf3 {[%emt 0:10:13]} c5 {[%emt 0:01:28]} 25. Rfd2 {[%emt 0:01:01]} cxd4 {[%emt 0:01:17]} 26. Nxd4 {[%emt 0:11:17]} Rc7+ {[%emt 0:00:18]} 27. Nc2 {[%emt 0:00:11]} Rxd2 {[%emt 0:00:45]} 28. Rxd2 {[%emt 0:00:12]} Rxc2+ {[%emt 0:00:08]} 29. Rxc2+ {[%emt 0:00:02]} Bxc2 {[%emt 0:00:07]} 30. Kxc2 {[%emt 0:08:44]} fxe5 {[%emt 0:00:17]} 31. g3 {[%emt 0:00:03]} exf4 {[%emt 0:00:27]} 32. Bf2 {[%emt 0:01:39]} e5 {[%emt 0:02:02]} 33. Kd3 {[%emt 0:00:34]} Kd7 {[%emt 0:00:13]} 34. Ke4 {[%emt 0:00:01]} Ke6 {[%emt 0:00:21]} 35. a4 {[%emt 0:00:34]} fxg3 {[%emt 0:03:31]} 36. Bxg3 {[%emt 0:00:02]} Bf4 {[%emt 0:00:30]} 37. Bxf4 {[%emt 0:00:58]} exf4 {[%emt 0:00:06]} 38. Kxf4 {[%emt 0:00:02]} Kf6 {[%emt 0:00:27]} 39. h4 {[%emt 0:00:53]} a5 {[%emt 0:01:40]} 40. b3 {[%emt 0:00:03]} g5+ {[%emt 0:02:01]} 41. hxg5+ {[%emt 0:00:03]} Kg6 {[%emt 0:00:07]} 42. Ke5 {[%emt 0:00:44]} Kxg5 {[%emt 0:00:32]} 43. Kd6 {[%emt 0:00:08]} h4 {[%emt 0:00:25]} 44. Kc6 {[%emt 0:00:02]} h3 {[%emt 0:01:33]} 45. Kxb6 {[%emt 0:00:05]} h2 {[%emt 0:00:41]} 46. Kxa5 {[%emt 0:00:03]} h1=Q {[%emt 0:00:10]} 47. b4 {[%emt 0:00:29]} Qa8+ {[%emt 0:00:06]} 48. Kb5 {[%emt 0:00:04]} Kf5 {[%emt 0:00:06]} 49. a5 {[%emt 0:00:11]} Qb7+ {[%emt 0:01:24]} 50. Kc5 {[%emt 0:01:39]} Ke5 {[%emt 0:00:25]} 51. b5 {[%emt 0:01:58]} Qc7+ {[%emt 0:00:16]} 52. Kb4 {[%emt 0:00:19]} Kd4 {[%emt 0:00:21]} 53. a6 {[%emt 0:01:25]} Qb6 {[%emt 0:00:24]} 54. Ka4 {[%emt 0:00:46]} Kc3 {[%emt 0:00:18]} 0-1